bitfinex-derivatives/quotes_ETHF0:USTF0_20250331
["timestamp","ask_amount","ask_price","bid_price","bid_amount"]
[1743398342209,0.00830266,1808.3,1808.2,3.2078]
[1743398342412,0.00830266,1808.3,1808.2,7.7418]
[1743398342708,0.00830266,1808.3,1808.2,8.84796]
[1743398343805,0.00830266,1808.3,1808.2,3.2078]
[1743398344902,0.00830266,1808.3,1808.2,4.31396]
[1743398345107,0.00830266,1808.3,1808.2,3.2078]
[1743398345310,0.00830266,1808.3,1808.2,4.31396]
[1743398345506,1.10593,1808.6,1808.3,1.10608]
[1743398345804,1.10575,1808.9,1808.5,3.2078]
[1743398345996,1.10581,1808.8,1808.5,3.2078]
[1743398346201,1.4169,1809.0,1808.5,3.2078]
[1743398346400,1.10573,1808.9,1808.6,1.10589]
[1743398346601,0.00830266,1808.9,1808.7,4.53]
[1743398346802,1.10579,1808.8,1808.7,4.53]
[1743398347001,1.11404266,1808.9,1808.7,4.53]
[1743398348013,0.00830266,1808.9,1808.6,4.515]
[1743398348210,1.10585,1808.7,1808.6,4.515]
[1743398348813,1.10581,1808.8,1808.6,4.515]
[1743398349314,0.00830266,1808.9,1808.6,4.515]
[1743398349615,1.10579,1808.8,1808.6,4.515]
[1743398349816,1.10585,1808.7,1808.6,4.515]
[1743398350115,1.10591,1808.6,1808.5,3.2078]
[1743398350314,1.10591,1808.6,1808.5,7.7088]
[1743398350623,1.10589,1808.7,1808.5,7.7088]
[1743398350811,1.10589,1808.7,1808.5,3.2078]
[1743398351011,1.38860266,1808.9,1808.5,7.7058]
[1743398351216,1.10591,1808.6,1808.5,7.7058]
[1743398351916,1.10589,1808.7,1808.5,7.7058]
[1743398352616,1.10581,1808.8,1808.5,7.7058]
[1743398353118,1.10581,1808.8,1808.5,8.81177]
[1743398353316,1.10586,1808.7,1808.5,7.7058]
[1743398353511,1.10583,1808.8,1808.5,7.7058]
[1743398353908,0.00830266,1808.9,1808.5,7.7058]
[1743398354215,1.10579,1808.8,1808.7,3.2078]
[1743398354611,1.11407266,1808.9,1808.7,3.2078]
[1743398354921,0.00830266,1808.9,1808.8,4.47]
[1743398355516,0.00830266,1808.9,1808.8,5.57579]
[1743398355722,1.10555,1809.2,1808.9,1.10568]
[1743398355923,1.10555,1809.2,1809.0,3.2078]
[1743398356117,1.10552,1809.3,1809.1,4.462]
[1743398356313,1.10554,1809.2,1809.1,4.462]
[1743398356519,5.97138,1809.4,1808.8,3.2078]
[1743398356817,1.10567,1809.0,1808.9,4.47530266]
[1743398357516,1.10567,1809.0,1808.9,0.00830266]
[1743398357713,1.10565,1809.1,1808.9,4.47830266]
[1743398358210,1.10567,1809.0,1808.9,4.47830266]
[1743398358615,1.10567,1809.0,1808.9,5.88030266]
[1743398359821,1.10563,1809.1,1808.9,5.88030266]
[1743398360123,1.10567,1809.0,1808.9,5.88030266]
[1743398360820,1.37065301,1809.3,1808.9,5.86130266]
[1743398361016,1.10567,1809.0,1808.9,5.86130266]
[1743398361224,1.10565,1809.1,1808.9,5.86130266]
[1743398361425,1.10567,1809.0,1808.9,5.86130266]
[1743398361617,1.10563,1809.1,1808.9,5.86130266]
[1743398362825,0.00545301,1809.3,1808.9,5.86130266]
[1743398363422,1.10567,1809.0,1808.9,1.41030266]
[1743398363725,1.10564,1809.1,1808.9,5.84630266]
[1743398363922,0.00545301,1809.3,1808.9,5.84630266]
[1743398364125,1.1056,1809.2,1809.0,3.2078]
[1743398364326,1.10554,1809.2,1809.1,1.3711]
[1743398364626,0.00545301,1809.3,1809.1,1.3711]
[1743398364926,0.00545301,1809.3,1809.2,4.435]
[1743398365121,0.00545301,1809.3,1809.2,5.8509]
[1743398365422,0.00545301,1809.3,1809.2,10.16424]
[1743398365637,1.10521,1809.8,1809.5,1.10535]
[1743398365824,1.10521,1809.8,1809.6,9.0547]
[1743398366024,1.10521,1809.8,1809.7,1.4159]
[1743398367128,3.2078,1810.0,1809.4,1.10539]
[1743398367129,1.4776,1809.9,1809.5,4.427]
[1743398367429,1.1053,1809.6,1809.5,5.8429]
[1743398370318,1.10536,1809.5,1809.4,7.6108]
[1743398371424,2.76357,1809.4,1809.1,1.3751]
[1743398371629,1.10554,1809.2,1809.1,5.7711]
[1743398371824,3.2078,1809.4,1808.9,0.00830266]
[1743398372028,1.10567,1809.0,1808.9,0.00830266]
[1743398374131,4.31347,1809.0,1808.9,0.00830266]
[1743398374519,1.10567,1809.0,1808.9,0.00830266]
[1743398375130,1.10565,1809.1,1808.9,0.00830266]
[1743398375430,1.10565,1809.1,1808.9,1.51510266]
[1743398375829,1.10567,1809.0,1808.9,5.89610266]
[1743398376731,1.10567,1809.0,1808.9,1.51510266]
[1743398377629,7.3401,1809.3,1808.9,1.51510266]
[1743398377826,1.10567,1809.0,1808.9,1.51510266]
[1743398378029,4.5763,1809.3,1808.9,1.51510266]
[1743398378330,1.10567,1809.0,1808.9,1.51510266]
[1743398379532,1.10564,1809.1,1808.9,1.51510266]
[1743398379730,3.2078,1809.6,1809.0,3.2078]
[1743398380025,11.94165409,1810.2,1809.2,3.2078]
[1743398380026,9.0373,1809.8,1809.2,3.2078]
[1743398380227,9.0373,1809.8,1809.3,1.4724]
[1743398380228,1.1054,1809.5,1809.3,1.4724]
[1743398380433,1.1054,1809.5,1809.4,4.363]
[1743398380622,1.10529,1809.7,1809.4,5.46842]
[1743398380927,1.1053,1809.6,1809.5,1.4724]
[1743398383127,2.76326,1809.6,1809.0,10.08416]
[1743398383327,1.10555,1809.2,1809.0,8.9785]
[1743398383626,1.10553,1809.3,1809.0,10.08416]
[1743398383928,2.76315,1809.7,1809.0,8.9785]
[1743398384127,1.3963,1809.7,1809.2,3.2078]
[1743398384326,1.3963,1809.7,1809.3,5.7707]
[1743398384327,1.10545,1809.4,1809.3,5.7707]
[1743398384527,1.10541,1809.5,1809.3,5.7707]
[1743398384729,1.10535,1809.6,1809.4,1.4237]
[1743398384929,3.2078,1809.8,1809.4,4.6315]
[1743398385129,1.10536,1809.5,1809.4,8.9765]
[1743398385737,1.10536,1809.5,1809.4,4.6315]
[1743398388033,1.10536,1809.5,1809.4,3.2078]
[1743398388635,1.10536,1809.5,1809.4,4.687]
[1743398392240,19.2896978,1809.7,1809.4,4.687]
[1743398392640,1.10536,1809.5,1809.4,4.687]
[1743398393233,17.31749912,1809.7,1809.4,4.687]
[1743398393840,1.10533,1809.6,1809.4,4.687]
[1743398394335,18.42278912,1809.7,1809.4,5.79241]
[1743398394640,18.42273912,1809.7,1809.6,3.2078]
[1743398394843,18.42273912,1809.7,1809.6,7.5088]
[1743398395440,18.42273912,1809.7,1809.6,8.9857]
[1743398395739,18.42273912,1809.7,1809.6,10.091]
[1743398395740,17.31749912,1809.7,1809.6,10.091]
[1743398395935,17.31749912,1809.7,1809.6,8.9857]
[1743398396136,18.42273912,1809.7,1809.6,8.9857]
[1743398397137,18.42273912,1809.7,1809.6,10.091]
[1743398397431,17.31749912,1809.7,1809.6,10.091]
[1743398397839,17.31749912,1809.7,1809.6,10.7909]
[1743398399046,1.10524,1809.7,1809.6,9.6556]
[1743398399343,18.42267912,1809.9,1809.7,1.10524]
[1743398399538,18.42267912,1809.9,1809.8,4.6405]
[1743398399732,17.31749912,1809.9,1809.8,4.6405]
[1743398401132,17.31749912,1809.9,1809.8,5.74568]
[1743398401335,18.42261912,1809.9,1809.8,3.2078]
[1743398402337,17.31749912,1809.9,1809.8,3.2078]
[1743398402645,18.42261912,1809.9,1809.8,3.2078]
[1743398402839,1.10518,1809.8,1809.7,1.4041]
[1743398403849,17.31749912,1809.9,1809.7,1.4041]
[1743398404039,17.31749912,1809.9,1809.7,2.50932]
[1743398404349,17.31749912,1809.9,1809.7,2.50931]
[1743398404845,18.42261912,1809.9,1809.7,2.50931]
[1743398405746,1.10518,1809.8,1809.7,1.4041]
[1743398405941,1.10518,1809.8,1809.7,5.6551]
[1743398406141,2.51518,1809.8,1809.7,5.6551]
[1743398406543,1.41,1809.8,1809.7,5.6551]
[1743398406845,17.31749912,1809.9,1809.7,6.76032]
[1743398407034,17.31749912,1809.9,1809.7,5.6551]
[1743398407239,17.31749912,1809.9,1809.8,4.31298]
[1743398407441,17.31749912,1809.9,1809.8,3.2078]
[1743398407943,17.31749912,1809.9,1809.8,4.31298]
[1743398408335,17.31749912,1809.9,1809.8,3.2078]
[1743398408738,17.31749912,1809.9,1809.8,4.31298]
[1743398410542,37.71228692,1810.0,1809.8,4.31298]
[1743398410741,37.71228692,1810.0,1809.9,1.4666]
[1743398411849,36.60719692,1810.0,1809.9,2.57172]
[1743398412046,36.60719692,1810.0,1809.9,3.28042]
[1743398413146,1.10494,1810.2,1810.0,1.10501]
[1743398413447,1.10494,1810.2,1810.1,8.9396]
[1743398414151,1.10494,1810.2,1810.1,1.5078]
[1743398414352,1.10499,1810.1,1810.0,4.212]
[1743398414549,1.10499,1810.1,1810.0,5.7198]
[1743398414739,1.10499,1810.1,1810.0,1.5078]
[1743398414945,1.10506,1810.0,1809.9,4.21730266]
[1743398415146,2.59606,1810.0,1809.9,0.00830266]
[1743398415447,1.10524,1809.7,1809.6,1.5078]
[1743398415848,1.10522,1809.8,1809.6,1.5078]
[1743398416255,4.6988,1810.0,1809.6,1.5078]
[1743398416457,0.00830266,1809.9,1809.6,1.5078]
[1743398417148,1.10521,1809.8,1809.6,1.5078]
[1743398417648,1.10524,1809.7,1809.6,1.5078]
[1743398417856,1.10523,1809.8,1809.6,1.5078]
[1743398418560,1.10522,1809.8,1809.6,1.5078]
[1743398418761,1.10524,1809.7,1809.6,1.5078]
[1743398419355,1.46920266,1809.9,1809.6,1.5078]
[1743398419551,1.1052,1809.8,1809.6,1.5078]
[1743398419857,1.10524,1809.7,1809.6,1.5078]
[1743398422248,1.1052,1809.8,1809.6,1.5078]
[1743398422454,1.46920266,1809.9,1809.6,1.5078]
[1743398422662,1.10524,1809.7,1809.6,1.5078]
[1743398424855,0.00830266,1809.9,1809.6,1.5078]
[1743398425055,0.00830266,1809.9,1809.7,3.2078]
[1743398425264,1.11342266,1809.9,1809.8,5.558]
[1743398428267,1.11342266,1809.9,1809.8,1.386]
[1743398428458,1.11342266,1809.9,1809.8,5.542]
[1743398428962,0.00830266,1809.9,1809.8,5.542]
[1743398429162,1.11342266,1809.9,1809.8,5.542]
[1743398430564,0.00830266,1809.9,1809.8,5.542]
[1743398430761,0.00830266,1809.9,1809.8,6.64718]
[1743398431062,1.10495,1810.2,1809.9,1.10506]
[1743398431254,1.10495,1810.2,1810.1,3.2078]
[1743398431460,21.43299756,1810.6,1810.1,7.3628]
[1743398431660,22.53773756,1810.6,1810.3,4.31266]
[1743398431871,21.43299756,1810.6,1810.5,3.2078]
[1743398432263,21.43299756,1810.6,1810.5,5.77295]
[1743398432567,21.43299756,1810.6,1810.5,34.08455]
[1743398432761,15.25795589,1810.6,1810.5,34.08455]
[1743398433168,15.25795589,1810.6,1810.5,32.9798]
[1743398433362,15.25795589,1810.6,1810.5,34.08455]
[1743398433666,17.32331888,1810.6,1810.5,34.08455]
[1743398433869,17.32331888,1810.6,1810.5,36.58455]
[1743398434066,17.32331888,1810.6,1810.5,37.31575]
[1743398434766,17.32331888,1810.6,1810.5,37.867]
[1743398435364,20.59338374,1810.7,1810.5,10.267]
[1743398435970,20.59338374,1810.7,1810.5,11.37173]
[1743398436860,20.59338374,1810.7,1810.5,11.92453]
[1743398437056,20.59338374,1810.7,1810.5,11.37173]
[1743398437670,19.48873374,1810.7,1810.6,4.157]
[1743398438473,19.48873374,1810.7,1810.6,4.151]
[1743398439170,20.59337374,1810.7,1810.6,4.15]
[1743398439770,19.48873374,1810.7,1810.6,4.15]
[1743398439966,19.48873374,1810.7,1810.6,5.25469]
[1743398440170,20.59336374,1810.7,1810.6,4.15]
[1743398441172,1.10475,1810.5,1810.4,0.00830266]
[1743398442868,2.58202,1810.6,1810.4,0.00830266]
[1743398443063,1.10475,1810.5,1810.4,0.00830266]
[1743398443367,2.58205,1810.5,1810.4,0.00830266]
[1743398443565,1.10493,1810.2,1810.1,3.2078]
[1743398443772,1.10493,1810.2,1810.1,7.3408]
[1743398444466,2.5821,1810.5,1810.1,8.44579]
[1743398444772,1.4773,1810.5,1810.3,3.2078]
[1743398444972,1.48560266,1810.5,1810.4,5.5997]
[1743398445174,2.59035266,1810.5,1810.4,5.5997]
[1743398445381,1.48560266,1810.5,1810.4,5.5997]
[1743398445575,2.59035266,1810.5,1810.4,5.5997]
[1743398445775,1.48560266,1810.5,1810.4,5.5997]
[1743398446778,0.00830266,1810.5,1810.4,5.5997]
[1743398447074,0.00830266,1810.5,1810.4,6.70451]
[1743398447278,19.48873374,1810.7,1810.6,1.10469]
[1743398447481,19.48873374,1810.7,1810.6,4.31249]
[1743398447982,19.48873374,1810.7,1810.6,5.75329]
[1743398448376,20.59336374,1810.7,1810.6,4.6486]
[1743398448877,20.59336374,1810.7,1810.6,7.3268]
[1743398450183,19.48873374,1810.7,1810.6,7.3268]
[1743398450383,19.48873374,1810.7,1810.6,8.43149]
[1743398454190,19.48873374,1810.7,1810.6,4.31249]
[1743398454488,19.48873374,1810.7,1810.6,8.40949]
[1743398454784,20.91583374,1810.7,1810.6,8.40949]
[1743398455085,1.4271,1810.7,1810.6,8.40949]
[1743398456894,16.76295589,1810.9,1810.8,1.10457]
[1743398457097,16.76295589,1810.9,1810.8,4.31237]
[1743398458002,15.25795589,1810.9,1810.8,4.31237]
[1743398459102,1.505,1811.0,1810.9,1.10451]
[1743398459304,1.505,1811.0,1810.9,6.56321]
[1743398459497,1.505,1811.0,1810.9,4.078]
[1743398459498,2.60945,1811.0,1810.9,4.078]
[1743398460589,1.10451,1810.9,1810.8,4.067]
[1743398460789,2.57001,1810.9,1810.8,4.067]
[1743398460990,1.4655,1810.9,1810.8,4.067]
[1743398461199,2.57001,1810.9,1810.8,4.067]
[1743398461601,1.10463,1810.7,1810.6,3.2078]
[1743398461796,1.10459,1810.8,1810.6,8.37649]
[1743398462104,3.2078,1811.2,1810.8,1.10455]
[1743398462294,1.10445,1811.0,1810.9,3.2078]
[1743398462601,1.5105,1811.1,1810.7,4.5945]
[1743398462802,1.10448,1811.0,1810.7,4.5945]
[1743398463005,1.5105,1810.9,1810.7,5.69907]
[1743398463200,1.5105,1810.9,1810.8,1.10457]
[1743398463506,1.5105,1810.9,1810.7,5.69909]
[1743398463898,2.61505,1810.9,1810.7,5.69912]
[1743398464203,1.5105,1810.9,1810.8,1.10457]
[1743398465005,1.5105,1810.9,1810.7,5.69908]
[1743398465398,1.5105,1810.9,1810.8,1.10457]
[1743398465600,1.5105,1810.9,1810.7,5.69909]
[1743398465801,1.5105,1810.9,1810.8,1.10457]
[1743398466297,1.10434,1811.2,1810.9,1.10446]
[1743398466501,1.10438,1811.1,1811.0,4.6358]
[1743398467105,17.32331888,1811.3,1811.0,4.6358]
[1743398467405,18.42757888,1811.3,1811.2,3.2078]
[1743398467706,19.88217888,1811.3,1811.2,7.2558]
[1743398468597,1.4546,1811.3,1811.2,7.2558]
[1743398468796,17.32331888,1811.4,1811.3,1.10426]
[1743398469504,17.31501622,1811.4,1811.3,6.00918256]
[1743398469808,17.31501622,1811.4,1811.3,13.13813838]
[1743398470108,19.48873374,1811.5,1811.4,1.1042]
[1743398470305,19.48873374,1811.5,1811.4,5.8169]
[1743398470509,19.48873374,1811.5,1811.4,15.49753302]
[1743398471602,1.10392,1811.9,1811.4,14.39333302]
[1743398471804,1.10396,1811.8,1811.7,3.2078]
[1743398471999,1.10396,1811.8,1811.7,4.039]
[1743398472200,1.10402,1811.7,1811.5,3.2078]
[1743398472409,1.10414,1811.5,1811.4,4.042]
[1743398473304,1.409,1811.6,1811.4,5.14618]
[1743398473502,2.51311,1811.6,1811.5,3.2078]
[1743398474006,1.409,1811.6,1811.5,3.2078]
[1743398474304,1.409,1811.6,1811.5,4.6017]
[1743398474607,1.409,1811.6,1811.5,5.70584]
[1743398475612,1.5047,1811.8,1811.7,1.10402]
[1743398475807,24.18003374,1812.3,1811.8,1.10394]
[1743398476009,1.10396,1811.8,1811.7,7.2378]
[1743398476401,1.10396,1811.8,1811.7,3.2078]
[1743398476606,1.10396,1811.8,1811.7,7.2458]
[1743398476908,1.5047,1812.0,1811.8,1.10393]
[1743398477106,1.1039,1811.9,1811.8,1.4811]
[1743398477308,1.5047,1812.0,1811.8,1.4811]
[1743398477505,1.5047,1812.0,1811.7,3.2078]
[1743398477701,1.10396,1811.8,1811.7,7.2638]
[1743398478110,1.5047,1812.0,1811.7,7.2638]
[1743398478306,1.10396,1811.8,1811.7,7.2638]
[1743398478507,1.10396,1811.8,1811.7,4.056]
[1743398479912,1.10402,1811.7,1811.6,0.00827952]
[1743398480117,2.52802,1811.7,1811.6,4.05727952]
[1743398481615,2.52802,1811.7,1811.6,0.00827952]
[1743398481813,5.73582,1811.7,1811.6,0.00827952]
[1743398482015,9.89192,1811.7,1811.1,4.31218]
[1743398482221,1.10424,1811.4,1811.1,4.31216]
[1743398482426,1.424,1811.3,1811.2,1.10432]
[1743398482615,1.424,1811.3,1811.1,4.6951]
[1743398482811,2.52827,1811.3,1811.2,1.4873]
[1743398483219,1.424,1811.3,1811.2,1.4873]
[1743398483418,0.00820238,1811.4,1811.3,1.10426]
[1743398483619,0.00820238,1811.4,1811.3,4.049]
[1743398484223,0.00820238,1811.4,1811.3,7.2568]
[1743398485227,0.00820238,1811.4,1811.3,8.36106]
[1743398485621,3.9332,1812.2,1811.6,1.10406]
[1743398485918,1.10399,1811.8,1811.6,4.043]
[1743398486123,1.10399,1811.8,1811.7,1.5037]
[1743398487827,1.10402,1811.7,1811.6,4.043]
[1743398488329,1.104,1811.8,1811.6,4.043]
[1743398488625,3.2078,1812.0,1811.6,4.043]
[1743398488821,22.93067374,1812.3,1811.7,4.7115]
[1743398488822,1.10391,1811.9,1811.7,4.7115]
[1743398489223,1.10391,1811.9,1811.5,3.2078]
[1743398489224,1.10396,1811.8,1811.5,3.2078]
[1743398489526,1.10457,1810.8,1810.7,1.3972]
[1743398491120,0.00827952,1810.9,1810.7,1.3972]
[1743398491318,1.10457,1810.8,1810.7,1.3972]
[1743398491521,1.11280952,1810.9,1810.7,1.3972]
[1743398492033,1.10457,1810.8,1810.7,1.3972]
[1743398492227,0.00827952,1810.9,1810.7,1.3972]
[1743398492421,0.00827952,1810.9,1810.8,4.175]
[1743398492620,1.11278952,1810.9,1810.8,4.175]
[1743398492821,1.10457,1810.8,1810.7,4.605]
[1743398493022,1.11282952,1810.9,1810.7,8.78]
[1743398493424,1.10457,1810.8,1810.7,8.78]
[1743398494125,1.10457,1810.8,1810.7,4.605]
[1743398494324,1.10457,1810.8,1810.7,8.779]
[1743398497927,1.10463,1810.7,1810.6,0.00827952]
[1743398498127,4.31243,1810.7,1810.6,0.00827952]
[1743398498625,4.31243,1810.7,1810.2,3.2078]
[1743398498626,5.7078,1810.7,1810.2,3.2078]
[1743398498825,1.10493,1810.2,1810.1,6.2718]
[1743398499228,1.10493,1810.2,1810.1,5.5268]
[1743398499624,4.15018,1810.4,1809.8,0.7068]
[1743398499830,4.15018,1810.4,1809.8,1.3708]
[1743398499831,1.10512,1809.9,1809.8,1.3708]
[1743398500136,1.10514,1809.9,1809.7,4.9021]
[1743398500435,1.10514,1809.9,1809.8,1.3708]
[1743398501237,2.58774,1809.9,1809.8,1.3708]
[1743398501736,1.4826,1809.9,1809.7,4.91037952]
[1743398501927,1.4826,1809.9,1809.7,8.11817952]
[1743398502127,2.58772,1809.9,1809.8,1.4192]
[1743398502738,0.00827952,1810.0,1809.8,2.52436]
[1743398502938,0.00827952,1810.0,1809.9,1.4192]
[1743398504332,1.11333952,1810.0,1809.9,1.4192]
[1743398504733,0.00827952,1810.0,1809.9,1.4192]
[1743398505142,0.00827952,1810.0,1809.9,4.627]
[1743398506243,1.11333952,1810.0,1809.9,4.627]
[1743398507245,1.11333952,1810.0,1809.9,5.73212]
[1743398507246,0.00827952,1810.0,1809.9,5.73212]
[1743398507845,1.10485,1810.4,1810.1,1.10496]
[1743398508045,1.48,1810.6,1810.2,9.87112]
[1743398508240,1.10481,1810.4,1810.3,4.124]
[1743398508641,1.10479,1810.5,1810.3,4.124]
[1743398508940,1.10479,1810.5,1810.4,1.4354]
[1743398510539,1.48827952,1810.6,1810.5,1.10475]
[1743398510746,0.00827952,1810.6,1810.4,4.6432]
[1743398510942,0.00827952,1810.6,1810.4,5.74799]
[1743398511339,0.00827952,1810.6,1810.5,1.10475]
[1743398511534,0.00827952,1810.6,1810.5,1.4625]
[1743398513450,0.00827952,1810.6,1810.5,2.56725]
[1743398518955,1.11296952,1810.6,1810.5,1.4625]
[1743398519251,1.10481,1810.4,1810.3,0.7476]
[1743398519467,1.10481,1810.4,1810.3,6.2193]
[1743398520360,1.10481,1810.4,1810.3,6.2143]
[1743398520659,2.53219,1810.5,1810.3,6.2143]
[1743398520862,2.53216,1810.5,1810.3,7.31915]
[1743398521164,2.53217,1810.5,1810.3,6.2143]
[1743398521356,1.11299952,1810.6,1810.4,1.3977]
[1743398521558,1.11299952,1810.6,1810.4,4.6055]
[1743398521762,1.11297952,1810.6,1810.4,5.71031]
[1743398521964,1.11297952,1810.6,1810.4,4.6055]
[1743398522365,0.00827952,1810.6,1810.4,5.7103]
[1743398523161,1.43077952,1810.6,1810.4,5.7103]
[1743398523466,0.00827952,1810.6,1810.5,1.10475]
[1743398523668,0.00827952,1810.6,1810.5,2.55425]
[1743398536477,0.00827952,1810.6,1810.5,5.76205]
[1743398537073,1.10475,1810.5,1810.4,5.11678]
[1743398537574,1.45727952,1810.6,1810.5,1.10475]
[1743398537767,1.45727952,1810.6,1810.5,4.31255]
[1743398537966,1.45727952,1810.6,1810.5,5.75315]
[1743398538876,2.56196952,1810.6,1810.5,4.6484]
[1743398540171,1.45727952,1810.6,1810.5,5.75315]
[1743398540375,0.00827952,1810.6,1810.5,5.75315]
[1743398553582,1.10426,1811.3,1811.2,1.10429]
[1743398553774,2.54226,1811.3,1811.2,5.05429]
[1743398553980,1.438,1811.3,1811.2,5.05429]
[1743398554376,1.438,1811.3,1811.2,8.26209]
[1743398557778,2.54226,1811.3,1811.2,3.2078]
[1743398557978,1.10432,1811.2,1811.1,0.00827952]
[1743398558184,3.25112,1811.2,1811.1,0.00827952]
[1743398558380,5.75112,1811.2,1811.1,0.00827952]
[1743398558684,1.10445,1811.0,1810.9,7.1478]
[1743398558885,0.7525,1811.1,1810.9,7.1478]
[1743398559087,1.4038,1811.0,1810.9,8.25227]
[1743398560985,1.4038,1811.0,1810.9,7.1478]
[1743398561191,1.4038,1811.0,1810.9,8.25231]
[1743398561488,1.4038,1811.0,1810.9,7.1478]
[1743398561689,2.50825,1811.0,1810.9,7.1508]
[1743398562482,1.4038,1811.0,1810.9,7.1508]
[1743398562888,2.50825,1811.0,1810.9,7.1508]
[1743398563088,2.50825,1811.0,1810.8,0.00827952]
[1743398563089,1.10451,1810.9,1810.8,0.00827952]
[1743398563392,1.1046,1810.8,1810.6,5.04467]
[1743398563583,1.4428,1810.7,1810.6,5.04467]
[1743398563782,1.4428,1810.9,1810.8,1.10456]
[1743398563983,1.4428,1810.9,1810.8,4.31236]
[1743398564395,2.54731,1810.9,1810.8,3.2078]
[1743398564586,1.4428,1810.9,1810.8,4.31237]
[1743398567791,0.7449,1811.2,1810.8,5.96918]
[1743398567997,1.4865,1811.1,1811.0,4.3122]
[1743398568400,1.4865,1811.1,1811.0,5.8241]
[1743398571596,1.4865,1811.1,1811.0,4.3122]
[1743398572300,2.59088,1811.1,1811.0,3.92]
[1743398573799,1.4865,1811.1,1811.0,3.92]
[1743398574005,1.4865,1811.1,1811.0,8.23225]
[1743398574603,1.4865,1811.1,1811.0,9.67805]
[1743398576700,2.59088,1811.1,1811.0,9.67805]
[1743398576894,1.4865,1811.1,1811.0,9.67805]
[1743398577704,2.59088,1811.1,1811.0,8.5736]
[1743398578009,2.59088,1811.1,1811.0,9.67805]
[1743398578511,2.59088,1811.1,1811.0,4.6536]
[1743398578702,2.59088,1811.1,1811.0,8.5476]
[1743398579007,2.59088,1811.1,1811.0,3.893]
[1743398579604,6.7475,1811.1,1810.7,0.00827952]
[1743398579803,1.10457,1810.8,1810.7,0.00827952]
[1743398581001,1.10457,1810.8,1810.7,1.44267952]
[1743398581410,1.10457,1810.8,1810.7,0.00827952]
[1743398582199,1.3965,1810.9,1810.7,1.44267952]
[1743398582401,1.3965,1810.9,1810.8,4.31237]
[1743398582605,1.3965,1810.9,1810.8,3.2078]
[1743398582801,1.3965,1810.9,1810.8,4.31237]
[1743398583005,2.5898,1811.1,1810.8,3.9559]
[1743398583198,2.5898,1811.1,1810.9,6.41619]
[1743398583400,0.00827952,1811.3,1811.0,3.2078]
[1743398583603,1.49367952,1811.3,1811.0,3.2078]
[1743398583907,1.49367952,1811.3,1811.2,1.10432]
[1743398584106,1.49367952,1811.3,1811.2,5.00732]
[1743398584408,0.00827952,1811.3,1811.2,5.00732]
[1743398584602,0.00827952,1811.3,1811.2,9.62582]
[1743398587308,0.00827952,1811.3,1811.2,8.5215]
[1743398587607,0.00827952,1811.3,1811.2,9.62582]
[1743398587806,1.11253952,1811.3,1811.2,3.2078]
[1743398588004,2.62373952,1811.3,1811.2,3.2078]
[1743398588203,1.51947952,1811.3,1811.2,4.31212]
[1743398588508,0.00827952,1811.3,1811.2,5.71202]
[1743398588703,0.00827952,1811.3,1811.2,4.6077]
[1743398588903,1.11253952,1811.3,1811.2,3.2078]
[1743398589410,0.00827952,1811.3,1811.2,3.2078]
[1743398589601,0.00827952,1811.3,1811.2,8.20812]
[1743398593112,0.00827952,1811.3,1811.2,5.05822]
[1743398593409,0.00827952,1811.3,1811.2,8.95122]
[1743398593917,1.10432,1811.2,1811.1,5.3066]
[1743398594314,2.54708952,1811.3,1811.1,5.3066]
[1743398594515,1.10432,1811.2,1811.1,5.3066]
[1743398594713,2.53882,1811.2,1811.1,3.893]
[1743398595114,1.4345,1811.2,1811.1,4.99738]
[1743398595803,0.00827952,1811.3,1811.1,3.893]
[1743398596009,0.00827952,1811.3,1811.2,4.31212]
[1743398596217,1.11253952,1811.3,1811.2,3.2078]
[1743398596414,2.51333952,1811.3,1811.2,3.2078]
[1743398597710,1.40907952,1811.3,1811.2,3.2078]
[1743398598018,2.51333952,1811.3,1811.2,3.2078]
[1743398598205,1.10432,1811.2,1811.1,3.897]
[1743398598412,2.51322,1811.2,1811.1,3.897]
[1743398599514,1.10445,1811.0,1810.9,7.1008]
[1743398600110,1.10451,1810.9,1810.8,0.7481]
[1743398600316,1.4089,1810.9,1810.8,5.74367]
[1743398601622,3.21607952,1811.3,1810.9,2.76127]
[1743398601920,4.32033952,1811.3,1811.0,3.2078]
[1743398602219,4.32033952,1811.3,1811.1,5.00536]
[1743398603418,0.00827952,1811.3,1811.2,1.10432]
[1743398603716,1.11253952,1811.3,1811.1,5.00535]
[1743398604511,1.10432,1811.2,1811.1,3.901]
[1743398604710,2.48932,1811.2,1811.1,3.901]
[1743398604916,2.48932,1811.2,1811.1,5.00538]
[1743398605218,2.48932,1811.2,1811.1,3.901]
[1743398606218,1.10432,1811.2,1811.1,3.901]
[1743398606517,1.11257952,1811.3,1811.1,5.00537]
[1743398606917,1.11257952,1811.3,1811.1,3.901]
[1743398606918,0.00827952,1811.3,1811.1,3.901]
[1743398607115,1.11256952,1811.3,1811.1,5.00533]
[1743398607315,1.10432,1811.2,1811.1,5.00533]
[1743398607518,1.10432,1811.2,1811.1,3.901]
[1743398607713,2.51332,1811.2,1811.1,3.901]
[1743398609209,2.51332,1811.2,1811.1,5.335]
[1743398610526,1.409,1811.2,1811.1,6.43938]
[1743398611820,2.51332,1811.2,1811.1,6.43938]
[1743398612616,2.51332,1811.2,1811.1,1.434]
[1743398612821,2.51332,1811.2,1811.1,5.295]
[1743398613318,2.51332,1811.2,1811.1,6.39938]
[1743398613522,2.51332,1811.2,1811.1,5.295]
[1743398614128,1.409,1811.2,1811.1,6.39938]
[1743398614918,1.11253952,1811.3,1811.2,1.10432]
[1743398615120,1.11253952,1811.3,1811.2,2.47412]
[1743398615412,1.11253952,1811.3,1811.2,1.3698]